[Event "15. ročník Dobrovický rapid Tereos TTD a.s."]
[Site "Dobrovice, Czech Republic"]
[Date "2020.02.29"]
[Round "5.8"]
[White "Janous Petr"]
[Black "Zahorbensky Jaroslav"]
[Result "0-1"]
[TimeControl "15m + 3s / tah"]
[WhiteElo "1931"]
[BlackElo "2105"]

1. e4 {[%clk 00:15:05]} g6 {[%clk 00:15:03]} {[%emt 00:00:03]} 2. d4 {[%clk
00:15:06]} {[%emt 00:00:02]} Nf6 {[%clk 00:15:05]} {[%emt 00:00:01]} 3. Nc3
{[%clk 00:15:07]} {[%emt 00:00:02]} d5 {[%clk 00:15:07]} 4. exd5 {[%clk
00:14:30]} {[%emt 00:00:40]} Nxd5 {[%clk 00:15:08]} {[%emt 00:00:02]} 5. Nxd5
{[%clk 00:14:25]} {[%emt 00:00:09]} Qxd5 {[%clk 00:15:09]} {[%emt 00:00:02]} 6.
Nf3 {[%clk 00:14:19]} {[%emt 00:00:09]} Bg4 {[%clk 00:14:58]} {[%emt 00:00:14]}
7. Be2 {[%clk 00:14:11]} {[%emt 00:00:11]} Nc6 {[%clk 00:13:52]} {[%emt
00:01:09]} 8. O-O {[%clk 00:13:37]} {[%emt 00:00:37]} Bg7 {[%clk 00:13:44]}
{[%emt 00:00:11]} 9. Be3 {[%clk 00:12:32]} {[%emt 00:01:08]} O-O {[%clk
00:12:36]} {[%emt 00:01:12]} 10. c3 {[%clk 00:11:25]} {[%emt 00:01:11]} Rad8
{[%clk 00:11:56]} {[%emt 00:00:42]} 11. Re1 {[%clk 00:10:59]} {[%emt 00:00:29]}
a5 {[%clk 00:10:35]} {[%emt 00:01:23]} 12. Qa4 {[%clk 00:09:50]} {[%emt
00:01:11]} e6 {[%clk 00:08:37]} {[%emt 00:02:01]} 13. h3 {[%clk 00:08:39]}
{[%emt 00:01:15]} Bf5 {[%clk 00:07:29]} {[%emt 00:01:11]} 14. Nd2 {[%clk
00:07:41]} {[%emt 00:01:00]} e5 {[%clk 00:07:11]} {[%emt 00:00:22]} 15. c4
{[%clk 00:07:13]} {[%emt 00:00:31]} Qd7 {[%clk 00:06:58]} {[%emt 00:00:17]} 16.
d5 {[%clk 00:06:18]} {[%emt 00:00:58]} Nb4 {[%clk 00:05:39]} {[%emt 00:01:22]}
17. Qxd7 {[%clk 00:05:58]} {[%emt 00:00:22]} Rxd7 {[%clk 00:05:09]} {[%emt
00:00:33]} 18. g4 {[%clk 00:05:49]} {[%emt 00:00:12]} Bd3 {[%clk 00:05:00]}
{[%emt 00:00:12]} 19. a3 {[%clk 00:05:37]} {[%emt 00:00:15]} Bxe2 {[%clk
00:04:45]} {[%emt 00:00:18]} 20. axb4 {[%clk 00:05:36]} {[%emt 00:00:04]} Bd3
{[%clk 00:04:43]} {[%emt 00:00:05]} 21. bxa5 {[%clk 00:03:50]} {[%emt
00:01:50]} f5 {[%clk 00:04:08]} {[%emt 00:00:38]} 22. Bc5 {[%clk 00:03:30]}
{[%emt 00:00:22]} Re8 {[%clk 00:04:08]} {[%emt 00:00:04]} 23. Ra3 {[%clk
00:03:22]} {[%emt 00:00:12]} e4 {[%clk 00:04:03]} {[%emt 00:00:08]} 24. Rb3
{[%clk 00:03:21]} {[%emt 00:00:04]} c6 {[%clk 00:03:39]} {[%emt 00:00:26]} 25.
d6 {[%clk 00:02:35]} {[%emt 00:00:50]} Bh6 {[%clk 00:03:09]} {[%emt 00:00:34]}
26. Nf1 {[%clk 00:02:24]} {[%emt 00:00:13]} Bxc4 {[%clk 00:03:09]} {[%emt
00:00:03]} 27. Rc3 {[%clk 00:02:04]} {[%emt 00:00:22]} Bb5 {[%clk 00:03:02]}
{[%emt 00:00:10]} 28. Ne3 {[%clk 00:01:59]} {[%emt 00:00:08]} f4 {[%clk
00:02:43]} {[%emt 00:00:23]} 29. Nc4 {[%clk 00:02:01]} Bg7 {[%clk 00:02:05]}
{[%emt 00:00:41]} 30. Nb6 {[%clk 00:01:21]} {[%emt 00:00:43]} Rdd8 {[%clk
00:02:07]} 31. Rb3 {[%clk 00:01:10]} {[%emt 00:00:14]} Re5 {[%clk 00:01:46]}
{[%emt 00:00:24]} 32. Bd4 {[%clk 00:01:04]} {[%emt 00:00:09]} Re6 {[%clk
00:01:39]} {[%emt 00:00:10]} 33. Bxg7 {[%clk 00:01:04]} {[%emt 00:00:02]} Kxg7
{[%clk 00:01:41]} {[%emt 00:00:01]} 34. d7 {[%clk 00:01:06]} {[%emt 00:00:02]}
Kf7 {[%clk 00:01:24]} {[%emt 00:00:21]} 35. Rb4 {[%clk 00:01:04]} {[%emt
00:00:04]} Bd3 {[%clk 00:01:20]} {[%emt 00:00:07]} 36. f3 {[%clk 00:00:59]}
{[%emt 00:00:09]} c5 {[%clk 00:01:15]} {[%emt 00:00:07]} 37. Ra4 {[%clk
00:00:52]} {[%emt 00:00:09]} g5 {[%clk 00:00:45]} {[%emt 00:00:34]} 38. fxe4
{[%clk 00:00:51]} {[%emt 00:00:03]} Ke7 {[%clk 00:00:45]} {[%emt 00:00:04]} 39.
b3 {[%clk 00:00:33]} {[%emt 00:00:22]} Bb5 {[%clk 00:00:46]} {[%emt 00:00:02]}
40. Ra2 {[%clk 00:00:32]} {[%emt 00:00:03]} Bxd7 {[%clk 00:00:47]} {[%emt
00:00:03]} 41. Nxd7 {[%clk 00:00:26]} {[%emt 00:00:08]} Rxd7 {[%clk 00:00:49]}
{[%emt 00:00:02]} 42. Rc2 {[%clk 00:00:28]} Rc6 {[%clk 00:00:45]} {[%emt
00:00:08]} 43. Rc4 {[%clk 00:00:25]} {[%emt 00:00:07]} Rd3 {[%clk 00:00:44]}
{[%emt 00:00:04]} 44. Rec1 {[%clk 00:00:23]} {[%emt 00:00:05]} Kd6 {[%clk
00:00:41]} {[%emt 00:00:05]} 45. e5+ {[%clk 00:00:21]} {[%emt 00:00:05]} Kxe5
{[%clk 00:00:30]} {[%emt 00:00:14]} 46. Rxc5+ {[%clk 00:00:23]} {[%emt
00:00:01]} Rxc5 {[%clk 00:00:32]} {[%emt 00:00:01]} 47. Rxc5+ {[%clk 00:00:25]}
Rd5 {[%clk 00:00:35]} 48. Rc7 {[%clk 00:00:25]} {[%emt 00:00:03]} Rb5 {[%clk
00:00:31]} {[%emt 00:00:07]} 49. Rxh7 {[%clk 00:00:25]} {[%emt 00:00:03]} Rxb3
{[%clk 00:00:29]} {[%emt 00:00:05]} 50. Kg2 {[%clk 00:00:27]} Rg3+ {[%clk
00:00:17]} {[%emt 00:00:15]} 51. Kf2 {[%clk 00:00:28]} {[%emt 00:00:02]} Ra3
{[%clk 00:00:19]} {[%emt 00:00:01]} 52. Rxb7 {[%clk 00:00:27]} {[%emt
00:00:05]} Rxa5 {[%clk 00:00:20]} {[%emt 00:00:02]} 53. Re7+ {[%clk 00:00:26]}
{[%emt 00:00:03]} Kf6 {[%clk 00:00:21]} {[%emt 00:00:02]} 54. Rb7 {[%clk
00:00:28]} {[%emt 00:00:02]} Ra3 {[%clk 00:00:23]} {[%emt 00:00:02]} 55. Rb6+
{[%clk 00:00:29]} {[%emt 00:00:01]} Ke5 {[%clk 00:00:23]} {[%emt 00:00:01]} 56.
Rb5+ {[%clk 00:00:30]} {[%emt 00:00:02]} Ke4 {[%clk 00:00:25]} {[%emt
00:00:02]} 57. Rxg5 {[%clk 00:00:30]} {[%emt 00:00:03]} Ra2+ {[%clk 00:00:27]}
{[%emt 00:00:02]} 58. Kg1 {[%clk 00:00:25]} {[%emt 00:00:08]} Kf3 {[%clk
00:00:28]} {[%emt 00:00:02]} 59. Rb5 {[%clk 00:00:24]} {[%emt 00:00:03]} Kg3
{[%clk 00:00:31]} {[%emt 00:00:01]} 60. Rb3+ {[%clk 00:00:26]} {[%emt
00:00:01]} f3 {[%clk 00:00:33]} 61. Rb1 {[%clk 00:00:26]} {[%emt 00:00:02]}
Kxh3 {[%clk 00:00:34]} {[%emt 00:00:02]} 62. g5 {[%clk 00:00:27]} {[%emt
00:00:02]} Rg2+ {[%clk 00:00:16]} {[%emt 00:00:22]} 63. Kf1 {[%clk 00:00:24]}
{[%emt 00:00:05]} Rh2 {[%clk 00:00:18]} {[%emt 00:00:01]} 64. Rb8 {[%clk
00:00:12]} {[%emt 00:00:15]} Kg3 {[%clk 00:00:20]} {[%emt 00:00:02]} 65. Rf8
{[%clk 00:00:13]} {[%emt 00:00:02]} Ra2 {[%clk 00:00:12]} {[%emt 00:00:11]} 66.
Ke1 {[%clk 00:00:09]} {[%emt 00:00:07]} f2+ {[%clk 00:00:13]} {[%emt 00:00:02]}
67. Kf1 {[%clk 00:00:07]} {[%emt 00:00:04]} Ra1+ {[%clk 00:00:15]} 68. Ke2
{[%clk 00:00:10]} Re1+ {[%clk 00:00:17]} 69. Kd2 {[%clk 00:00:11]} {[%emt
00:00:02]} f1=Q {[%clk 00:00:18]} {[%emt 00:00:02]} 0-1

[Event "15. ročník Dobrovický rapid Tereos TTD a.s."]
[Site "Dobrovice, Czech Republic"]
[Date "2020.02.29"]
[Round "5.9"]
[White "Groh Jiri"]
[Black "Jacek Miloslav"]
[Result "1-0"]
[TimeControl "15m + 3s / tah"]
[WhiteElo "2031"]
[BlackElo "1977"]

1. Nf3 {[%clk 00:15:03]} {[%emt 00:00:02]} c5 {[%clk 00:15:02]} {[%emt
00:00:05]} 2. c4 {[%clk 00:15:00]} {[%emt 00:00:06]} g6 {[%clk 00:15:02]}
{[%emt 00:00:04]} 3. g3 {[%clk 00:15:02]} Bg7 {[%clk 00:15:04]} 4. Bg2 {[%clk
00:15:04]} {[%emt 00:00:01]} Nc6 {[%clk 00:15:03]} {[%emt 00:00:03]} 5. O-O
{[%clk 00:15:04]} {[%emt 00:00:02]} e5 {[%clk 00:14:58]} {[%emt 00:00:08]} 6.
Nc3 {[%clk 00:15:01]} {[%emt 00:00:06]} Nge7 {[%clk 00:14:59]} {[%emt
00:00:03]} 7. e3 {[%clk 00:14:51]} {[%emt 00:00:13]} O-O {[%clk 00:14:58]}
{[%emt 00:00:03]} 8. d4 {[%clk 00:14:42]} {[%emt 00:00:12]} exd4 {[%clk
00:14:24]} {[%emt 00:00:38]} 9. exd4 {[%clk 00:14:42]} {[%emt 00:00:03]} d6
{[%clk 00:13:57]} {[%emt 00:00:30]} 10. dxc5 {[%clk 00:14:14]} {[%emt
00:00:31]} dxc5 {[%clk 00:13:55]} {[%emt 00:00:05]} 11. Be3 {[%clk 00:14:15]}
{[%emt 00:00:02]} Nd4 {[%clk 00:13:37]} {[%emt 00:00:21]} 12. Nd5 {[%clk
00:13:24]} {[%emt 00:00:53]} Bg4 {[%clk 00:12:24]} {[%emt 00:01:16]} 13. Re1
{[%clk 00:12:01]} {[%emt 00:01:26]} Nxd5 {[%clk 00:11:53]} {[%emt 00:00:34]} 14.
cxd5 {[%clk 00:12:02]} {[%emt 00:00:02]} Qd7 {[%clk 00:10:13]} {[%emt
00:01:43]} 15. h3 {[%clk 00:11:34]} {[%emt 00:00:30]} Bxh3 {[%clk 00:09:32]}
{[%emt 00:00:44]} 16. Bxh3 {[%clk 00:11:21]} {[%emt 00:00:17]} Qxh3 {[%clk
00:09:31]} {[%emt 00:00:05]} 17. Nxd4 {[%clk 00:11:20]} {[%emt 00:00:04]} cxd4
{[%clk 00:09:26]} {[%emt 00:00:07]} 18. Bxd4 {[%clk 00:11:21]} {[%emt
00:00:02]} Qd7 {[%clk 00:08:27]} {[%emt 00:01:02]} 19. Bxg7 {[%clk 00:11:20]}
{[%emt 00:00:04]} Kxg7 {[%clk 00:08:30]} {[%emt 00:00:01]} 20. Qd4+ {[%clk
00:11:13]} {[%emt 00:00:09]} Kg8 {[%clk 00:08:13]} {[%emt 00:00:20]} 21. d6
{[%clk 00:11:02]} {[%emt 00:00:14]} Rfe8 {[%clk 00:07:57]} {[%emt 00:00:19]} 22.
Red1 {[%clk 00:10:16]} {[%emt 00:00:49]} Re6 {[%clk 00:07:37]} {[%emt
00:00:23]} 23. Rac1 {[%clk 00:10:07]} {[%emt 00:00:12]} Rae8 {[%clk 00:05:36]}
{[%emt 00:02:03]} 24. Rc7 {[%clk 00:08:51]} {[%emt 00:01:18]} Re1+ {[%clk
00:04:48]} {[%emt 00:00:52]} 25. Rxe1 {[%clk 00:08:53]} Rxe1+ {[%emt 00:00:03]}
26. Kg2 {[%clk 00:08:53]} {[%emt 00:00:02]} Qb5 {[%clk 00:04:23]} {[%emt
00:00:29]} 27. Rc8+ {[%clk 00:07:45]} {[%emt 00:01:11]} Re8 {[%clk 00:04:24]}
{[%emt 00:00:03]} 28. d7 {[%clk 00:07:45]} {[%emt 00:00:03]} 1-0

[Event "15. ročník Dobrovický rapid Tereos TTD a.s."]
[Site "Dobrovice, Czech Republic"]
[Date "2020.02.29"]
[Round "5.10"]
[White "Vavrinec Tomas"]
[Black "Kykal Vojtech"]
[Result "1-0"]
[TimeControl "15m + 3s / tah"]
[WhiteElo "2025"]
[BlackElo "1955"]

1. c4 {[%clk 00:15:03]} {[%emt 00:00:02]} c6 {[%clk 00:15:05]} {[%emt
00:00:02]} 2. Nf3 {[%clk 00:15:05]} {[%emt 00:00:02]} d5 {[%clk 00:15:07]}
{[%emt 00:00:01]} 3. g3 {[%clk 00:15:06]} {[%emt 00:00:01]} Nf6 {[%clk
00:15:08]} {[%emt 00:00:01]} 4. Bg2 {[%clk 00:15:08]} {[%emt 00:00:01]} Bf5
{[%clk 00:15:01]} {[%emt 00:00:10]} 5. b3 {[%clk 00:14:52]} {[%emt 00:00:19]}
e6 {[%clk 00:15:03]} {[%emt 00:00:01]} 6. Bb2 {[%clk 00:14:49]} {[%emt
00:00:06]} Be7 {[%clk 00:15:05]} {[%emt 00:00:02]} 7. O-O {[%clk 00:14:50]}
{[%emt 00:00:02]} O-O {[%clk 00:15:06]} {[%emt 00:00:02]} 8. d3 {[%clk
00:14:52]} {[%emt 00:00:01]} Nbd7 {[%clk 00:14:59]} {[%emt 00:00:10]} 9. Nbd2
{[%clk 00:14:53]} {[%emt 00:00:02]} Nc5 {[%clk 00:14:38]} {[%emt 00:00:25]} 10.
b4 {[%clk 00:14:31]} {[%emt 00:00:24]} Ncd7 {[%clk 00:14:35]} {[%emt 00:00:07]}
11. a3 {[%clk 00:14:16]} {[%emt 00:00:18]} a5 {[%clk 00:14:05]} {[%emt
00:00:33]} 12. Qb3 {[%clk 00:14:12]} {[%emt 00:00:07]} Qb6 {[%clk 00:13:50]}
{[%emt 00:00:18]} 13. Nd4 {[%clk 00:13:27]} {[%emt 00:00:48]} Bg4 {[%clk
00:13:21]} {[%emt 00:00:32]} 14. c5 {[%clk 00:13:05]} {[%emt 00:00:24]} Qc7
{[%clk 00:12:49]} {[%emt 00:00:36]} 15. Rfc1 {[%clk 00:12:35]} {[%emt
00:00:33]} Rfe8 {[%clk 00:12:00]} {[%emt 00:00:52]} 16. e4 {[%clk 00:12:03]}
{[%emt 00:00:35]} e5 {[%clk 00:11:12]} {[%emt 00:00:50]} 17. Nf5 {[%clk
00:10:54]} {[%emt 00:01:12]} Bf8 {[%clk 00:09:51]} {[%emt 00:01:24]} 18. Ne3
{[%clk 00:10:05]} {[%emt 00:00:51]} d4 {[%clk 00:08:48]} {[%emt 00:01:08]} 19.
Nxg4 {[%clk 00:10:00]} {[%emt 00:00:08]} Nxg4 {[%clk 00:08:49]} {[%emt
00:00:01]} 20. Bh3 {[%clk 00:08:27]} {[%emt 00:01:36]} Ngf6 {[%clk 00:07:35]}
{[%emt 00:01:17]} 21. Nc4 {[%clk 00:08:28]} {[%emt 00:00:02]} g6 {[%clk
00:07:00]} {[%emt 00:00:39]} 22. Nxa5 {[%clk 00:08:20]} {[%emt 00:00:11]} Nxc5
{[%clk 00:06:58]} {[%emt 00:00:05]} 23. Qd1 {[%clk 00:07:26]} {[%emt 00:00:56]}
Ncd7 {[%clk 00:06:08]} {[%emt 00:00:53]} 24. Nc4 {[%clk 00:05:52]} {[%emt
00:01:38]} Nb6 {[%clk 00:05:50]} {[%emt 00:00:20]} 25. Nxb6 {[%clk 00:05:34]}
{[%emt 00:00:22]} Qxb6 {[%clk 00:05:51]} {[%emt 00:00:02]} 26. Rc4 {[%clk
00:05:36]} c5 {[%clk 00:05:33]} {[%emt 00:00:21]} 27. Rb1 {[%clk 00:05:10]}
{[%emt 00:00:28]} cxb4 {[%clk 00:05:09]} {[%emt 00:00:27]} 28. axb4 {[%clk
00:05:08]} {[%emt 00:00:06]} Qb5 {[%clk 00:05:01]} {[%emt 00:00:11]} 29. Qf3
{[%clk 00:04:24]} {[%emt 00:00:46]} Kg7 {[%clk 00:04:59]} {[%emt 00:00:06]} 30.
Bc1 {[%clk 00:03:51]} {[%emt 00:00:35]} h6 {[%clk 00:03:59]} {[%emt 00:01:04]}
31. Bxh6+ {[%clk 00:03:49]} {[%emt 00:00:05]} Kxh6 {[%clk 00:03:56]} {[%emt
00:00:07]} 32. Qxf6 {[%clk 00:03:50]} {[%emt 00:00:01]} Be7 {[%clk 00:03:44]}
{[%emt 00:00:12]} 33. Qxf7 {[%clk 00:03:44]} {[%emt 00:00:12]} Bd6 {[%clk
00:02:49]} {[%emt 00:00:58]} 34. Bd7 {[%clk 00:03:25]} {[%emt 00:00:22]} Re7
{[%clk 00:02:23]} {[%emt 00:00:30]} 35. Qxe7 {[%clk 00:03:19]} {[%emt
00:00:09]} Kg7 {[%emt 00:00:38]} 1-0

[Event "15. ročník Dobrovický rapid Tereos TTD a.s."]
[Site "Dobrovice, Czech Republic"]
[Date "2020.02.29"]
[Round "5.11"]
[White "Kopecky Jiri"]
[Black "Janicek Jindrich"]
[Result "0-1"]
[TimeControl "15m + 3s / tah"]
[WhiteElo "1927"]
[BlackElo "2022"]

1. e4 {[%clk 00:15:04]} {[%emt 00:00:01]} c5 {[%clk 00:15:05]} {[%emt
00:00:02]} 2. c3 {[%clk 00:15:05]} {[%emt 00:00:01]} d6 {[%clk 00:14:56]}
{[%emt 00:00:11]} 3. d4 {[%clk 00:15:07]} {[%emt 00:00:02]} Nf6 {[%clk
00:14:58]} {[%emt 00:00:01]} 4. Bd3 {[%clk 00:14:55]} {[%emt 00:00:15]} Nc6
{[%clk 00:14:55]} {[%emt 00:00:06]} 5. Nf3 {[%clk 00:14:43]} {[%emt 00:00:16]}
Bg4 {[%clk 00:14:33]} {[%emt 00:00:25]} 6. Be3 {[%clk 00:14:42]} {[%emt
00:00:03]} Qb6 {[%clk 00:11:54]} {[%emt 00:02:42]} 7. dxc5 {[%clk 00:13:17]}
{[%emt 00:01:28]} Qxb2 {[%clk 00:11:39]} {[%emt 00:00:18]} 8. Nbd2 {[%clk
00:13:00]} {[%emt 00:00:19]} Qxc3 {[%clk 00:11:28]} {[%emt 00:00:15]} 9. Be2
{[%clk 00:11:37]} {[%emt 00:01:25]} Nxe4 {[%clk 00:07:42]} {[%emt 00:03:48]} 10.
Rc1 {[%clk 00:10:15]} {[%emt 00:01:25]} Qa5 {[%clk 00:07:36]} {[%emt 00:00:08]}
11. cxd6 {[%clk 00:09:25]} {[%emt 00:00:55]} exd6 {[%clk 00:07:20]} {[%emt
00:00:19]} 12. O-O {[%clk 00:09:19]} {[%emt 00:00:09]} Nc3 {[%clk 00:06:52]}
{[%emt 00:00:31]} 13. Qe1 {[%clk 00:08:52]} {[%emt 00:00:27]} Nxe2+ {[%clk
00:06:52]} {[%emt 00:00:06]} 14. Qxe2 {[%clk 00:08:53]} {[%emt 00:00:02]} Be7
{[%clk 00:06:30]} {[%emt 00:00:25]} 15. Bg5 {[%clk 00:08:09]} {[%emt 00:00:45]}
Qxg5 {[%clk 00:06:23]} {[%emt 00:00:13]} 16. Qd1 {[%emt 00:00:14]} 0-1

[Event "15. ročník Dobrovický rapid Tereos TTD a.s."]
[Site "Dobrovice, Czech Republic"]
[Date "2020.02.29"]
[Round "5.12"]
[White "Joukl Zdenek"]
[Black "Korinek Pavel"]
[Result "1-0"]
[TimeControl "15m + 3s / tah"]
[WhiteElo "2022"]
[BlackElo "1950"]

1. d4 {[%clk 00:15:03]} {[%emt 00:00:02]} Nf6 {[%clk 00:15:04]} {[%emt
00:00:02]} 2. Nf3 {[%clk 00:14:52]} {[%emt 00:00:02]} g6 {[%clk 00:15:03]}
{[%emt 00:00:16]} 3. Bf4 {[%clk 00:14:52]} {[%emt 00:00:04]} Bg7 {[%clk
00:15:04]} {[%emt 00:00:02]} 4. Nbd2 {[%clk 00:14:49]} {[%emt 00:00:06]} d6
{[%clk 00:15:01]} {[%emt 00:00:05]} 5. e3 {[%clk 00:14:41]} {[%emt 00:00:12]}
O-O {[%clk 00:14:57]} {[%emt 00:00:06]} 6. Bc4 {[%clk 00:14:39]} {[%emt
00:00:06]} d5 {[%clk 00:14:36]} {[%emt 00:00:24]} 7. Bd3 {[%clk 00:14:37]}
{[%emt 00:00:05]} Nbd7 {[%clk 00:14:31]} {[%emt 00:00:07]} 8. h3 {[%clk
00:14:31]} {[%emt 00:00:10]} c5 {[%clk 00:14:23]} {[%emt 00:00:11]} 9. c3
{[%clk 00:14:30]} {[%emt 00:00:04]} b6 {[%clk 00:14:20]} {[%emt 00:00:06]} 10.
a4 {[%clk 00:14:16]} {[%emt 00:00:17]} Bb7 {[%clk 00:14:21]} {[%emt 00:00:02]}
11. a5 {[%clk 00:14:05]} {[%emt 00:00:13]} Re8 {[%clk 00:13:47]} {[%emt
00:00:37]} 12. a6 {[%clk 00:13:32]} {[%emt 00:00:37]} Bc6 {[%clk 00:13:41]}
{[%emt 00:00:07]} 13. O-O {[%clk 00:13:08]} {[%emt 00:00:29]} Qc8 {[%clk
00:13:24]} {[%emt 00:00:20]} 14. Re1 {[%clk 00:12:36]} {[%emt 00:00:36]} e6
{[%clk 00:13:14]} {[%emt 00:00:12]} 15. b4 {[%clk 00:12:15]} {[%emt 00:00:23]}
c4 {[%clk 00:13:02]} {[%emt 00:00:16]} 16. Bc2 {[%clk 00:11:57]} {[%emt
00:00:22]} Bb5 {[%clk 00:13:03]} {[%emt 00:00:02]} 17. e4 {[%clk 00:11:23]}
{[%emt 00:00:37]} Bxa6 {[%clk 00:12:04]} {[%emt 00:01:01]} 18. g4 {[%clk
00:11:21]} {[%emt 00:00:05]} Nxe4 {[%clk 00:11:42]} {[%emt 00:00:25]} 19. Nxe4
{[%clk 00:11:21]} {[%emt 00:00:03]} dxe4 {[%clk 00:11:43]} {[%emt 00:00:02]} 20.
Bxe4 {[%clk 00:11:22]} {[%emt 00:00:02]} Bb7 {[%clk 00:11:45]} {[%emt
00:00:01]} 21. Ng5 {[%clk 00:11:02]} {[%emt 00:00:23]} Nf6 {[%clk 00:11:30]}
{[%emt 00:00:18]} 22. Bg2 {[%clk 00:09:55]} {[%emt 00:01:11]} Bxg2 {[%clk
00:11:09]} {[%emt 00:00:24]} 23. Kxg2 {[%clk 00:09:56]} {[%emt 00:00:02]} Qb7+
{[%clk 00:11:10]} {[%emt 00:00:02]} 24. f3 {[%clk 00:09:54]} {[%emt 00:00:05]}
Nd5 {[%clk 00:10:40]} {[%emt 00:00:32]} 25. Bd2 {[%clk 00:09:50]} {[%emt
00:00:08]} a5 {[%clk 00:10:37]} {[%emt 00:00:07]} 26. bxa5 {[%clk 00:09:10]}
{[%emt 00:00:43]} Rxa5 {[%clk 00:10:36]} {[%emt 00:00:04]} 27. Rxa5 {[%clk
00:09:11]} {[%emt 00:00:02]} bxa5 {[%clk 00:10:38]} {[%emt 00:00:01]} 28. Qa4
{[%clk 00:09:09]} {[%emt 00:00:04]} Rc8 {[%clk 00:10:20]} {[%emt 00:00:21]} 29.
Ne4 {[%clk 00:07:23]} {[%emt 00:01:49]} Qb2 {[%clk 00:09:43]} {[%emt 00:00:39]}
30. Kg1 {[%clk 00:06:27]} {[%emt 00:01:00]} f5 {[%clk 00:09:36]} {[%emt
00:00:11]} 31. Qd7 {[%clk 00:06:17]} {[%emt 00:00:13]} Rf8 {[%clk 00:08:58]}
{[%emt 00:00:41]} 32. Qxe6+ {[%clk 00:06:16]} {[%emt 00:00:04]} Kh8 {[%clk
00:09:00]} 33. Bc1 {[%clk 00:04:58]} {[%emt 00:01:21]} Qc2 {[%clk 00:07:03]}
{[%emt 00:02:00]} 34. gxf5 {[%clk 00:01:41]} {[%emt 00:03:21]} gxf5 {[%clk
00:07:01]} {[%emt 00:00:05]} 35. Bh6 {[%clk 00:00:25]} {[%emt 00:01:18]} Bxh6
{[%clk 00:06:21]} {[%emt 00:00:44]} 36. Qxh6 {[%clk 00:00:26]} {[%emt
00:00:02]} Rg8+ {[%clk 00:06:13]} {[%emt 00:00:10]} 37. Ng5 {[%clk 00:00:28]}
{[%emt 00:00:01]} f4 {[%emt 00:00:49]} 38. Kh1 {[%emt 00:00:10]} Qg6 {[%emt
00:00:08]} 39. Qxg6 Rxg6 40. Nf7+ {[%emt 00:00:01]} Kg7 {[%emt 00:00:05]} 41.
Ne5 {[%emt 00:00:01]} Rg3 42. Kh2 {[%emt 00:00:07]} Ne3 {[%emt 00:00:05]} 43.
Ra1 {[%clk 00:00:00]} {[%emt 00:00:03]} 1-0